{"text_format":"1","workbook":"xlsx","n_sheets":1,"sheets":["Fichier_Inscription_Tournoi_Ete"],"not_rendered":{"charts":0,"images":0,"macros":0,"external_links":0,"defined_names":0,"comments":0,"pivot_tables":0},"unopened":[],"bounds":{"document_bytes":16777216,"sheet_cells":100000,"rows_first":2000,"rows_last":500,"rows_between":2000,"halvings":0,"cell_chars":16384,"cell_head_chars":4096},"cells_cut":0,"cells_raw":0,"read":"whole","date_system":"1900"}

{"sheet":"Fichier_Inscription_Tournoi_Ete","index":0,"n_rows":36,"n_cols":9,"rows_kept":36,"cut":false,"hidden":false,"merged":[[7,0,7,8],[10,0,10,8],[6,0,6,8]]}
[]
["Fiche d'inscription des compétiteurs au tournoi d'été de Morges, à destination des clubs et coachs"]
[]
["Fiche à retourner avant le: 27 Juin 2026 à secretariat@judoclubmorges.ch"]
["Frais d'inscription par participant: ",null,15]
["Total frais d'inscription à régler:",null,{"$f":"SUM(Table2[Frais d''inscription])","v":0}]
["Assurance:   A la charge des participants, l’organisateur décline toute responsabilité"]
["Judo Club Morges, Banque Cantonale Vaudoise, IBAN CH 1300 7670 00 R 5324 6318, BIC/SWIFT: BCVLCH2LXXX\nMention du paiement : « Inscriptions T ÉTÉ M 2025 – + club » /  Paiement  uniquement  effectué par les Clubs ."]
["Catégorie d'âge: ","Ecolier, ère C 2016/2017"]
[null,"Ecolier, ère C 2018/2019"]
["En cas d'un double départ  C et D ,veuillez remplir une deuxième ligne pour l'inscription ."]
["Nom","Prénom","Grade","Année de Naissance complète ","Cat. Age","Cat. Poids","Genre","Club","Frais d'inscription"]
[null,null,null,null,null,null,null,null,{"$f":"IF(Table2[[#This Row],[Nom]]<>\"\",$C$5,\"\")","v":""}]
[null,null,null,null,null,null,null,null,{"$f":"IF(Table2[[#This Row],[Nom]]<>\"\",$C$5,\"\")","v":""}]
[null,null,null,null,null,null,null,null,{"$f":"IF(Table2[[#This Row],[Nom]]<>\"\",$C$5,\"\")","v":""}]
[null,null,null,null,null,null,null,null,{"$f":"IF(Table2[[#This Row],[Nom]]<>\"\",$C$5,\"\")","v":""}]
[null,null,null,null,null,null,null,null,{"$f":"IF(Table2[[#This Row],[Nom]]<>\"\",$C$5,\"\")","v":""}]
[null,null,null,null,null,null,null,null,{"$f":"IF(Table2[[#This Row],[Nom]]<>\"\",$C$5,\"\")","v":""}]
[null,null,null,null,null,null,null,null,{"$f":"IF(Table2[[#This Row],[Nom]]<>\"\",$C$5,\"\")","v":""}]
[null,null,null,null,null,null,null,null,{"$f":"IF(Table2[[#This Row],[Nom]]<>\"\",$C$5,\"\")","v":""}]
[null,null,null,null,null,null,null,null,{"$f":"IF(Table2[[#This Row],[Nom]]<>\"\",$C$5,\"\")","v":""}]
[null,null,null,null,null,null,null,null,{"$f":"IF(Table2[[#This Row],[Nom]]<>\"\",$C$5,\"\")","v":""}]
[null,null,null,null,null,null,null,null,{"$f":"IF(Table2[[#This Row],[Nom]]<>\"\",$C$5,\"\")","v":""}]
[null,null,null,null,null,null,null,null,{"$f":"IF(Table2[[#This Row],[Nom]]<>\"\",$C$5,\"\")","v":""}]
[null,null,null,null,null,null,null,null,{"$f":"IF(Table2[[#This Row],[Nom]]<>\"\",$C$5,\"\")","v":""}]
[null,null,null,null,null,null,null,null,{"$f":"IF(Table2[[#This Row],[Nom]]<>\"\",$C$5,\"\")","v":""}]
[null,null,null,null,null,null,null,null,{"$f":"IF(Table2[[#This Row],[Nom]]<>\"\",$C$5,\"\")","v":""}]
[null,null,null,null,null,null,null,null,{"$f":"IF(Table2[[#This Row],[Nom]]<>\"\",$C$5,\"\")","v":""}]
[null,null,null,null,null,null,null,null,{"$f":"IF(Table2[[#This Row],[Nom]]<>\"\",$C$5,\"\")","v":""}]
[null,null,null,null,null,null,null,null,{"$f":"IF(Table2[[#This Row],[Nom]]<>\"\",$C$5,\"\")","v":""}]
[null,null,null,null,null,null,null,null,{"$f":"IF(Table2[[#This Row],[Nom]]<>\"\",$C$5,\"\")","v":""}]
[null,null,null,null,null,null,null,null,{"$f":"IF(Table2[[#This Row],[Nom]]<>\"\",$C$5,\"\")","v":""}]
[null,null,null,null,null,null,null,null,{"$f":"IF(Table2[[#This Row],[Nom]]<>\"\",$C$5,\"\")","v":""}]
[null,null,null,null,null,null,null,null,{"$f":"IF(Table2[[#This Row],[Nom]]<>\"\",$C$5,\"\")","v":""}]
[null,null,null,null,null,null,null,null,{"$f":"IF(Table2[[#This Row],[Nom]]<>\"\",$C$5,\"\")","v":""}]
[null,null,null,null,null,null,null,null,{"$f":"IF(Table2[[#This Row],[Nom]]<>\"\",$C$5,\"\")","v":""}]